fUSD/lending_fUSD_20250804
["ID","MTS","AMOUNT","RATE_DAILY","PERIOD"]
[377290223,1754321439295,-500.0,0.00037501,15]
[377290224,1754321439304,-495.6452782,0.00037501,7]
[377290225,1754321439314,-500.0,0.00037501,15]
[377290226,1754321439324,-186.37464316,0.00037501,2]
[377290227,1754321439334,-500.0,0.00037501,15]
[377290228,1754321439344,-461.20305353,0.00037501,15]
[377290229,1754321439353,-500.0,0.00037501,15]
[377290230,1754321439363,-500.0,0.00037501,15]
[377290231,1754321439373,-500.0,0.00037501,15]
[377290232,1754321439383,-500.0,0.00037501,15]
[377290233,1754321439393,-500.0,0.00037501,15]
[377290234,1754321439402,-500.0,0.00037501,15]
[377290235,1754321439412,-500.0,0.00037501,15]
[377290236,1754321439422,-500.0,0.00037501,15]
[377290237,1754321439432,-500.0,0.00037501,15]
[377290238,1754321439442,-500.0,0.00037501,15]
[377290239,1754321439451,-500.0,0.00037501,15]
[377290240,1754321439462,-453.22906538,0.00037501,15]
[377290241,1754321439472,-500.0,0.00037501,15]
[377290242,1754321439482,-500.0,0.00037501,15]
[377290243,1754321439491,-500.0,0.00037501,15]
[377290244,1754321439501,-500.0,0.00037501,15]
[377290245,1754321439511,-500.0,0.00037501,15]
[377290246,1754321439522,-500.0,0.00037501,15]
[377290247,1754321439531,-14656.8608888,0.00037502,2]
[377290248,1754321439541,-371.85,0.00037528,2]
[377290249,1754321439551,-220.32018737,0.00037546,2]
[377290250,1754321439560,-200.07831417,0.00037547,15]
[377290251,1754321439573,-161.37142777,0.00037547,2]
[377290252,1754321439582,-10627.97567211,0.00037547,2]
[377290253,1754321439592,-16108.72470738,0.00037647,2]
[377290254,1754321439601,-425919.85448683,0.00037647,2]
[377290255,1754321439611,-1318.76602373,0.00037647,2]
[377290256,1754321439620,-56821.69439822,0.00037647,2]
[377290257,1754321439630,-10709.37711479,0.00037647,3]
[377290258,1754321439640,-717.47329067,0.00037647,10]
[377290259,1754321439650,-67698.27992422,0.00037647,30]
[377290260,1754321439661,-40188.54016509,0.00037647,10]
[377290261,1754321439670,-4096.6436192,0.00037647,2]
[377290262,1754321439680,-217893.47592192,0.00037647,2]
[377290263,1754321439690,-2289.36473249,0.00037647,10]
[377290264,1754321439700,-2315.18141591,0.00037647,10]
[377290265,1754321439711,-1000.0,0.00037647,10]
[377290266,1754321439721,-4992.45530491,0.00037647,2]
[377290267,1754321439730,-14995.02458424,0.00037647,3]
[377290268,1754321439740,-5844.67171915,0.00037647,2]
[377290269,1754321439750,-500.0,0.00037647,10]
[377290270,1754321439759,-1849.08414097,0.00037647,2]
[377290271,1754321439769,-3266.16303624,0.00037647,2]
[377290272,1754321439779,-340.46006342,0.00037647,120]
[377290273,1754321439789,-1477.07432843,0.00037647,2]
[377290274,1754321439798,-1604.62490059,0.00037647,2]
[377290275,1754321439808,-10776.15906752,0.00037647,2]
[377290276,1754321439818,-171060.28749783,0.00037647,2]
[377290278,1754321439828,-15048.10270247,0.00037647,2]
[377290279,1754321439838,-491.60430917,0.00037647,3]
[377290280,1754321439848,-6000.0,0.00037647,2]
[377290281,1754321439858,-1481.44501991,0.00037647,2]
[377290282,1754321439867,-3079.68059975,0.00037647,2]
[377290283,1754321439878,-3349.7824339,0.00037647,2]
[377290284,1754321439888,-7827.27146799,0.00037647,2]
[377290285,1754321439897,-374.12499089,0.00037647,120]
[377290287,1754321439907,-124370.2824554,0.00037647,2]
[377290288,1754321439917,-6513.34661239,0.00037647,2]
[377290289,1754321439928,-227.61119961,0.00037647,15]
[377290290,1754321439937,-2500.0,0.00037647,2]
[377290291,1754321439946,-1885.79374774,0.00037647,2]
[377290292,1754321439957,-1717.16931209,0.00037647,2]
[377290293,1754321439966,-340.1994762,0.00037647,120]
[377290294,1754321439977,-1599.34580377,0.00037647,2]
[377290295,1754321439986,-3152.30434,0.00037647,2]
[377290296,1754321439995,-4960.36760744,0.00037647,10]
[377290297,1754321440005,-5044.01945447,0.00037647,2]
[377290298,1754321440015,-277.47986173,0.00037647,10]
[377290299,1754321440024,-2221.04064866,0.00037647,2]
[377290300,1754321440033,-713.39790865,0.00037647,10]
[377290301,1754321440043,-70933.9298068,0.00037647,30]
[377290302,1754321440054,-1850.64776874,0.00037647,2]
[377290303,1754321440065,-6837.45492147,0.00037647,4]
[377290304,1754321440075,-14999.999999,0.00037647,30]
[377290305,1754321440085,-18823.69326894,0.00037647,30]
[377290306,1754321440095,-590236.16552696,0.00037647,30]
[377290307,1754321440106,-14098.13277441,0.00037647,30]
[377290308,1754321440116,-2341.2963979,0.00037647,7]
[377290309,1754321440127,-11658.68113838,0.00037647,30]
[377290310,1754321440139,-1719.74607388,0.00037647,2]
[377290311,1754321440151,-19613.15211004,0.00037647,2]
[377290312,1754321440163,-3071.09500387,0.00037647,2]
[377290313,1754321440177,-4618.03194507,0.00037647,2]
[377290314,1754321440189,-2190.42492388,0.00037647,2]
[377290315,1754321440200,-526.0,0.00037647,2]
[377290316,1754321440210,-14521.39262513,0.00037647,30]
[377290317,1754321440220,-115833.99338062,0.00037647,2]
[377290318,1754321440229,-1800.0,0.00037647,30]
[377290319,1754321440240,-151.18,0.0003766,2]
[377290320,1754321440250,-151.18,0.0003766,2]
[377290321,1754321440259,-449.84786427,0.0003766,2]
[377290322,1754321440269,-314.70114627,0.00037669,15]
[377290323,1754321440279,-500.0,0.00037673,5]
[377290324,1754321440289,-500.0,0.00037673,5]
[377290325,1754321440298,-501.86736915,0.00037673,5]
[377290326,1754321440308,-456.24114273,0.00037673,5]
[377290327,1754321440318,-500.0,0.00037673,5]
[377290328,1754321440327,-500.0,0.00037673,5]
[377290329,1754321440337,-1972.3,0.000377,14]
[377290330,1754321440346,-181.73,0.000377,30]
[377290331,1754321440355,-9730.73390984,0.00037736,2]
[377290332,1754321440365,-560.0,0.00038146,2]
[377290333,1754321440374,-343.0,0.00038146,3]
[377290334,1754321440383,-252.76515321,0.0003842,5]
[377290335,1754321440391,-500.0,0.0003842,5]
[377290336,1754321440400,-161.37142771,0.00038505,2]
[377290337,1754321440409,-10627.97567207,0.0003872,2]
[377290338,1754321440418,-175.3,0.00038832,15]
[377290339,1754321440427,-19930.25750103,0.000389,7]
[377290340,1754321440437,-200.07831415,0.00038996,15]
[377290341,1754321440447,-745.91,0.00039006,120]
[377290342,1754321440457,-400.0,0.00039179,60]
[377290343,1754321440466,-371.85,0.00039258,2]
[377290344,1754321440476,-161.37142771,0.00039464,2]
[377290345,1754321440486,-1972.3,0.000395,14]
[377290346,1754321440495,-181.73,0.000395,30]
[377290347,1754321440505,-2790.55682,0.0003954,2]
[377290348,1754321440515,-3135.0,0.0003984,5]
[377290349,1754321440525,-10627.97567207,0.00039892,2]
[377290350,1754321440535,-6719.08489848,0.0004,120]
[377290351,1754321440545,-4857.13429899,0.00040092,2]
[377290352,1754321440555,-175.3,0.0004021,15]
[377290353,1754321440565,-161.37142771,0.00040422,120]
[377290355,1754321440580,-200.07831415,0.00040445,15]
[377290356,1754321440589,-2790.55683,0.0004054,5]
[377290357,1754321440599,-4361.43353434,0.00040782,2]
[377290358,1754321440609,-707.0,0.00040876,5]
[377290359,1754321440618,-371.85,0.00040989,2]
[377290360,1754321440628,-3064.1768412,0.00041,120]
[377290361,1754321440637,-1972.3,0.00041,14]
[377290362,1754321440649,-500.0,0.00041041,2]
[377290363,1754321440658,-165.54,0.00041049,2]
[377290364,1754321440667,-10627.97567207,0.00041065,15]
[377290365,1754321440676,-200.0,0.00041096,20]
[377290366,1754321440686,-3060.64039981,0.00041177,15]
[377290367,1754321440696,-52006.87316569,0.00041222,2]
[377290368,1754321440706,-250.0,0.00041277,120]
[377290369,1754321440716,-8636.01,0.00041277,2]
[377290370,1754321440726,-154.98,0.00041277,2]
[377290371,1754321440736,-512.13,0.00041277,120]
[377290372,1754321440746,-1202.05,0.00041277,2]
[377290373,1754321440756,-150.5,0.00041277,2]
[377290374,1754321440765,-1418.46,0.00041277,2]
[377290375,1754321440775,-841.59890878,0.00041338,2]
[377290376,1754321440785,-160.0,0.00041338,2]
[377290377,1754321440795,-457.2201239,0.00041338,2]
[377290378,1754321440804,-161.37142771,0.0004138,120]
[377290379,1754321440814,-2790.55682,0.0004154,9]
[377290380,1754321440824,-9780.45408572,0.00041548,2]
[377290381,1754321440833,-175.3,0.00041588,120]
[377290382,1754321440843,-163.36380888,0.00041665,28]
[377290383,1754321440853,-154.98,0.0004169,2]
[377290384,1754321440863,-349.71,0.00041699,62]
[377290385,1754321440872,-5000.0,0.0004185,120]
[377290386,1754321440882,-500.0,0.00041867,10]
[377290387,1754321440892,-500.0,0.00041867,10]
[377290388,1754321440902,-500.0,0.00041867,10]
[377290389,1754321440912,-500.60617561,0.00041867,10]
[377290390,1754321440921,-500.0,0.00041867,10]
[377290391,1754321440931,-200.07831415,0.00041895,15]
[377290392,1754321440940,-3060.64039976,0.0004198,15]
[377290393,1754321440949,-10627.97567207,0.00042237,15]
[377290394,1754321440960,-161.37142771,0.00042338,120]
[377290395,1754321440969,-1972.3,0.000424,14]
[377290396,1754321440979,-168.25,0.00042515,2]
[377290397,1754321440988,-2790.55683,0.0004254,14]
[377290398,1754321440997,-371.85,0.00042719,120]
[377290399,1754321441006,-3060.64039976,0.00042782,15]
[377290400,1754321441016,-2124.0,0.00042917,5]
[377290401,1754321441025,-175.3,0.00042966,120]
[377290402,1754321441035,-500.0,0.00043,120]
[377290403,1754321441044,-500.0,0.00043,120]
[377290405,1754321441054,-500.0,0.00043,120]
[377290406,1754321441064,-561.9829392,0.00043,120]
[377290407,1754321441073,-247.7,0.00043284,120]
[377290408,1754321441083,-161.37142771,0.00043297,120]
[377290409,1754321441092,-200.07831415,0.00043344,15]
[377290410,1754321441102,-10627.97567207,0.0004341,15]
[377290411,1754321441111,-2790.55682,0.0004354,19]
[377290412,1754321441121,-3060.64039976,0.00043585,15]
[377290413,1754321441130,-163.36380888,0.00043724,28]
[377290414,1754321441140,-500.0,0.00044218,2]
[377290415,1754321441149,-500.0,0.00044218,2]
[377290416,1754321441158,-500.0,0.00044218,2]
[377290417,1754321441168,-600.0,0.00044218,2]
[377290418,1754321441178,-18931.09,0.00044244,2]
[377290419,1754321441187,-161.37142771,0.00044255,120]
[377290420,1754321441198,-150.52,0.00044324,30]
[377290421,1754321441208,-150.0,0.00044324,30]
[377290422,1754321441218,-224.74,0.00044324,30]
[377290423,1754321441228,-150.0,0.00044324,30]
[377290424,1754321441237,-150.0,0.00044324,30]
[377290425,1754321441247,-150.0,0.00044324,30]
[377290426,1754321441256,-150.0,0.00044324,30]
[377290427,1754321441266,-150.0,0.00044324,30]
[377290428,1754321441275,-150.0,0.00044324,30]
[377290429,1754321441285,-1000.0,0.00044331,120]
[377290430,1754321441294,-985.6,0.00044334,120]
[377290431,1754321441303,-175.3,0.00044344,120]
[377290432,1754321441312,-158.22,0.00044345,120]
[377290433,1754321441322,-3060.64039976,0.00044387,15]
[377290434,1754321441332,-322.03,0.00044433,14]
[377290435,1754321441342,-371.85,0.00044449,120]
[377290436,1754321441351,-666.0,0.00044452,3]
[377290437,1754321441361,-160.59,0.00044521,2]
[377290438,1754321441370,-1000.0,0.00044537,2]
[377290439,1754321441380,-2790.55683,0.0004454,23]
[377290440,1754321441389,-10627.97567207,0.00044582,15]
[377290441,1754321441399,-306.54,0.00044598,30]
[377290442,1754321441409,-200.07831415,0.00044793,15]
[377290443,1754321441419,-3496.14378,0.00045,120]
[377290444,1754321441429,-151.0,0.00045,120]
[377290445,1754321441439,-152.0,0.00045,120]
[377290446,1754321441448,-200.0,0.00045,120]
[377290447,1754321441459,-4000.0,0.00045014,8]
[377290448,1754321441469,-319.73,0.00045164,30]
[377290449,1754321441479,-300.0,0.00045164,30]
[377290450,1754321441488,-11297.24,0.00045178,2]
[377290451,1754321441498,-151.18,0.0004518,2]
[377290452,1754321441508,-285.49,0.00045188,2]
[377290453,1754321441518,-3060.64039976,0.0004519,15]
[377290454,1754321441527,-161.37142771,0.00045213,120]
[377290455,1754321441536,-3023.49,0.00045277,2]
[377290456,1754321441545,-1000.0,0.00045555,2]
[377290457,1754321441554,-150.0,0.0004558,2]
[377290458,1754321441564,-165.54,0.0004561,2]
[377290459,1754321441577,-210.37,0.00045651,2]
[377290460,1754321441586,-257.6046725,0.00045654,10]
[377290461,1754321441597,-252.18109,0.00045669,2]
[377290462,1754321441606,-509.0,0.0004567,10]
[377290463,1754321441617,-515.0,0.0004567,10]
[377290464,1754321441627,-519.0,0.0004567,10]
[377290465,1754321441636,-175.3,0.00045722,120]
[377290466,1754321441645,-535.15953133,0.00045736,2]
[377290467,1754321441655,-10627.97567207,0.00045755,15]
[377290468,1754321441664,-163.36380888,0.00045782,28]
[377290469,1754321441674,-682.06606934,0.00045891,2]
[377290470,1754321441684,-773.93,0.00045936,2]
[377290471,1754321441693,-8310.35120249,0.00045963,2]
[377290472,1754321441705,-3060.64039976,0.00045992,15]
[377290473,1754321441714,-828.97260736,0.00046047,2]
[377290474,1754321441724,-1000.0,0.00046086,14]
[377290475,1754321441733,-161.37142771,0.00046171,120]
[377290476,1754321441743,-371.85,0.0004618,120]
[377290477,1754321441753,-975.87914537,0.00046202,2]
[377290478,1754321441763,-200.07831415,0.00046242,15]
[377290479,1754321441772,-171.03,0.00046295,14]
[377290480,1754321441781,-152.0,0.000463,120]
[377290481,1754321441791,-1122.78568338,0.00046358,2]
[377290482,1754321441800,-513.56151364,0.000464,120]
[377290483,1754321441810,-755.15705471,0.000464,120]
[377290484,1754321441820,-1000.0,0.0004645,14]
[377290485,1754321441830,-1000.0,0.0004647,14]
[377290486,1754321441841,-1269.69222139,0.00046513,2]
[377290487,1754321441850,-1885.36190791,0.0004654,120]
[377290488,1754321441860,-225.62128932,0.00046575,120]
[377290489,1754321441870,-1000.0,0.00046668,14]
[377290490,1754321441879,-1416.59875941,0.00046669,2]
[377290491,1754321441890,-150.99,0.00046737,2]
[377290492,1754321441900,-999.99,0.00046737,2]
[377290493,1754321441910,-299.99,0.00046737,120]
[377290494,1754321441920,-6000.4,0.00046737,2]
[377290495,1754321441930,-301.65,0.00046737,2]
[377290496,1754321441939,-2213.73,0.00046737,2]
[377290497,1754321441949,-327.81,0.00046737,2]
[377290498,1754321441962,-18840.9,0.00046737,30]
[377290499,1754321441972,-509.0,0.00046772,10]
[377290500,1754321441983,-3060.64039976,0.00046795,15]
[377290501,1754321441993,-1313.72112197,0.000468,120]
[377290502,1754321442002,-363.86271134,0.000468,120]
[377290503,1754321442012,-200.0,0.00046803,2]
[377290504,1754321442023,-1563.50529742,0.00046824,2]
[377290505,1754321442033,-285.49,0.00046883,2]
[377290506,1754321442043,-10627.97567207,0.00046927,15]
[377290507,1754321442053,-500.0,0.00046973,10]
[377290508,1754321442064,-500.0,0.00046973,10]
[377290509,1754321442074,-500.0,0.00046973,10]
[377290510,1754321442085,-500.0,0.00046973,10]
[377290511,1754321442099,-500.0,0.00046973,10]
[377290512,1754321442108,-500.0,0.00046973,10]
[377290513,1754321442119,-500.59527346,0.00046973,10]
[377290514,1754321442129,-500.0,0.00046973,10]
[377290515,1754321442140,-1710.41183542,0.0004698,2]
[377290516,1754321442149,-42720.8832019,0.0004699,3]
[377290517,1754321442160,-50000.0,0.00047,47]
[377290518,1754321442170,-50000.0,0.00047,57]
[377290519,1754321442180,-1972.3,0.00047,14]
[377290520,1754321442189,-1104.0,0.00047,2]
[377290521,1754321442199,-210.37,0.00047021,120]
[377290522,1754321442503,-817.39091772,0.00047027,2]
[377290523,1754321442514,-175.3,0.000471,120]
[377290524,1754321442524,-150.0,0.00047106,7]
[377290525,1754321442534,-161.37142771,0.0004713,120]
[377290526,1754321442544,-962.24500441,0.00047186,2]
[377290527,1754321442554,-1107.09909109,0.00047345,2]
[377290528,1754321442564,-150.0,0.00047389,7]
[377290529,1754321442578,-266.31904475,0.00047391,2]
[377290530,1754321442588,-2000.0,0.000474,2]
[377290531,1754321442599,-150.0,0.00047407,7]
[377290532,1754321442610,-2500.0,0.00047442,2]
[377290533,1754321442621,-1000.0,0.00047444,14]
[377290534,1754321442631,-769.79280595,0.000475,120]
[377290535,1754321442641,-1000.0,0.000475,120]
[377290536,1754321442652,-1000.0,0.000475,120]
[377290537,1754321442661,-1251.95317778,0.00047504,2]
[377290538,1754321442671,-194.06,0.00047508,14]
[377290539,1754321442682,-21360.4416009,0.00047532,3]
[377290540,1754321442691,-5001.58484705,0.00047541,2]
[377290541,1754321442701,-1000.0,0.00047541,2]
[377290542,1754321442712,-150.0,0.00047552,7]
[377290543,1754321442722,-500.0,0.00047573,10]
[377290544,1754321442732,-150.0,0.00047573,10]
[377290545,1754321442742,-3060.64039976,0.00047597,15]
[377290546,1754321442752,-150.0,0.00047598,7]
[377290547,1754321442762,-152.0,0.000476,120]
[377290548,1754321442771,-1000.0,0.000476,120]
[377290549,1754321442781,-1000.0,0.000476,120]
[377290550,1754321442790,-300.0,0.00047645,7]
[377290551,1754321442800,-1396.80726446,0.00047662,2]
[377290552,1754321442810,-200.07831415,0.00047692,15]
[377290553,1754321442821,-1000.0,0.000477,120]
[377290554,1754321442830,-1000.0,0.000477,120]
[377290555,1754321442840,-1000.0,0.000477,120]
[377290556,1754321442850,-150.0,0.00047743,7]
[377290557,1754321442860,-150.0,0.00047747,7]
[377290558,1754321442870,-4000.0,0.0004779,8]
[377290559,1754321442879,-1000.0,0.000478,120]
[377290560,1754321442889,-1000.0,0.000478,120]
[377290561,1754321442899,-1541.66135115,0.00047821,2]
[377290562,1754321442909,-163.36380888,0.00047841,28]
[377290565,1754321442919,-150.0,0.00047867,7]
[377290568,1754321442928,-1000.0,0.0004787,2]
[377290570,1754321442939,-509.0,0.00047874,10]
[377290572,1754321442948,-1295.44580364,0.0004788,100]
[377290573,1754321442959,-21360.4416009,0.0004789,4]
[377290574,1754321442969,-21360.4416009,0.00047897,4]
[377290575,1754321442979,-5000.0,0.000479,120]
[377290576,1754321442989,-501.05,0.000479,2]
[377290577,1754321442998,-20042.85636581,0.000479,120]
[377290578,1754321443008,-869.39344975,0.000479,30]
[377290579,1754321443017,-158.33639047,0.000479,23]
[377290580,1754321443028,-1000.0,0.000479,120]
[377290581,1754321443038,-2023.0,0.00047907,2]
[377290582,1754321443047,-1651.0,0.00047907,2]
[377290583,1754321443057,-1181.195,0.00047907,2]
[377290584,1754321443067,-891.912,0.00047907,2]
[377290585,1754321443076,-3071.331,0.00047907,2]
[377290586,1754321443086,-4135.0,0.00047907,2]
[377290587,1754321443096,-1251.0,0.00047907,2]
[377290588,1754321443106,-6179.422,0.00047907,2]
[377290589,1754321443117,-955.0,0.00047907,2]
[377290590,1754321443127,-809.0,0.00047907,2]
[377290591,1754321443136,-371.85,0.0004791,120]
[377290592,1754321443146,-1082.0,0.0004794,2]
[377290593,1754321443156,-166.66666667,0.00047969,4]
[377290594,1754321443167,-151.18,0.0004797,2]
[377290595,1754321443177,-213604.416009,0.0004798,4]
[377290596,1754321443186,-27785.059855,0.0004798,4]
[377290597,1754321443196,-1686.51543784,0.0004798,2]
[377290598,1754321443207,-64081.3248028,0.0004798,4]
[377290599,1754321443217,-9806.49171354,0.0004798,4]
[377290600,1754321443227,-1000.0,0.00047989,120]
[377290601,1754321443237,-1000.0,0.00047989,120]
[377290602,1754321443247,-1000.0,0.00047989,120]
[377290603,1754321443257,-1000.0,0.00047989,120]
[377290604,1754321443266,-1000.0,0.00047989,120]
[377290605,1754321443276,-1000.0,0.00047989,120]
[377290606,1754321443286,-308.85960432,0.00047989,120]
[377290607,1754321443296,-85441.7664037,0.0004799,4]
[377290608,1754321443306,-9806.49171354,0.0004799,4]
[377290609,1754321443315,-300.0,0.00047999,30]
[377290610,1754321443325,-50000.0,0.00048,48]
[377290611,1754321443335,-50000.0,0.00048,58]
[377290612,1754321443344,-70000.0,0.00048,120]
[377290613,1754321443354,-1088.48648787,0.00048,120]
[377290614,1754321443364,-164.25925925,0.00048,120]
[377290615,1754321443374,-21122.23738406,0.00048,120]
[377290616,1754321443390,-10089.32356555,0.00048,120]
[377290618,1754321443403,-76358.78173144,0.00048,120]
[377290620,1754321443415,-15409.99424459,0.00048,120]
[377290629,1754321444326,-129792.14486665,0.00048,120]
[377290630,1754321444336,-1553.1224872,0.00048,30]
[377290631,1754321444347,-362.0,0.00048,90]
[377290632,1754321444357,-247.0,0.00048,90]
[377290633,1754321444367,-150.0,0.00048023,7]
[377290634,1754321444378,-1571.70903954,0.0004803,2]
[377290635,1754321444388,-150.0,0.00048066,7]
[377290636,1754321444399,-449.84786427,0.00048069,7]
[377290637,1754321444410,-500.0,0.00048073,10]
[377290638,1754321444420,-220.37995172,0.00048073,10]
[377290639,1754321444431,-88888.0,0.00048079,120]
[377290640,1754321444441,-161.37142771,0.00048088,120]
[377290641,1754321444452,-1972.3,0.000481,14]
[377290642,1754321444468,-10627.97567207,0.000481,15]
[377290643,1754321444478,-311.51121148,0.000481,90]
[377290644,1754321444489,-3228.67366884,0.000481,2]
[377290645,1754321444499,-234.09333311,0.000481,2]
[377290646,1754321444510,-1000.0,0.00048121,10]
[377290647,1754321444520,-250.0,0.00048121,10]
[377290648,1754321444531,-7466.0,0.00048164,120]
[377290649,1754321444541,-151.0,0.00048179,14]
[377290650,1754321444552,-151.0,0.00048179,14]
[377290651,1754321444562,-151.0,0.00048179,14]
[377290652,1754321444574,-151.0,0.00048179,14]
[377290653,1754321444585,-151.0,0.00048179,14]
[377290654,1754321444595,-151.0,0.00048179,14]
[377290655,1754321444605,-173.358102,0.00048179,14]
[377290656,1754321444615,-173.358102,0.00048179,14]
[377290657,1754321444625,-151.0,0.00048179,14]
[377290658,1754321444635,-549.42867507,0.00048189,60]
[377290659,1754321444647,-666.0,0.00048189,30]
[377290660,1754321444657,-666.0,0.00048189,30]
[377290661,1754321444667,-666.0,0.00048189,30]
[377290662,1754321444676,-1719.38639895,0.0004819,2]
[377290663,1754321444686,-151.18,0.0004819,2]
[377290664,1754321444696,-151.18,0.0004819,2]
[377290665,1754321444707,-151.18,0.0004819,2]
[377290666,1754321444718,-151.18,0.0004819,2]
[377290667,1754321444727,-150.0,0.00048199,12]
[377290668,1754321444737,-150.0,0.00048199,12]
[377290669,1754321444747,-150.0,0.00048199,12]
[377290670,1754321444757,-150.0,0.00048199,12]
[377290671,1754321444910,-381.85355577,0.00048199,30]
[377290672,1754321444920,-406.0,0.000482,30]
[377290673,1754321444930,-2089724.93,0.000482,120]
[377290674,1754321444940,-151.0,0.000482,14]
[377290675,1754321444950,-151.0,0.000482,14]
[377290676,1754321444961,-151.0,0.000482,14]
[377290677,1754321444971,-151.0,0.000482,14]
[377290678,1754321444980,-151.0,0.000482,14]
[377290679,1754321444990,-172.826959,0.000482,14]
[377290680,1754321445000,-151.0,0.000482,14]
[377290681,1754321445010,-173.358102,0.000482,14]
[377290682,1754321445019,-173.358102,0.000482,14]
[377290683,1754321445029,-170.098092,0.000482,14]
[377290684,1754321445039,-170.098092,0.000482,14]
[377290685,1754321445048,-159.022194,0.000482,14]
[377290686,1754321445058,-1000.0,0.00048219,14]
[377290687,1754321445068,-150.0,0.00048231,7]
[377290688,1754321445077,-773.93,0.00048233,2]
[377290689,1754321445087,-150.0,0.00048241,7]
[377290690,1754321445096,-1000.0,0.00048257,2]
[377290691,1754321445106,-1000.0,0.00048257,2]
[377290692,1754321445116,-1000.0,0.00048257,2]
[377290693,1754321445125,-1000.0,0.00048257,2]
[377290694,1754321445134,-1000.0,0.00048257,2]
[377290695,1754321445144,-1000.0,0.00048257,2]
[377290696,1754321445154,-1000.0,0.00048257,2]
[377290697,1754321445164,-1000.0,0.00048257,2]
[377290698,1754321445173,-1000.0,0.00048257,2]
[377290699,1754321445183,-1000.0,0.00048257,2]
[377290700,1754321445193,-1000.0,0.00048257,2]
[377290701,1754321445202,-1000.0,0.00048257,2]
[377290702,1754321445213,-1000.0,0.00048257,2]
[377290703,1754321445223,-1000.0,0.00048257,2]
[377290704,1754321445232,-1000.0,0.00048257,2]
[377290705,1754321445242,-1000.0,0.00048257,2]
[377290706,1754321445252,-1000.0,0.00048257,2]
[377290707,1754321445262,-1000.0,0.00048257,2]
[377290708,1754321445271,-1000.0,0.00048257,2]
[377290709,1754321445281,-1000.0,0.00048257,2]
[377290710,1754321445290,-1000.0,0.00048257,2]
[377290711,1754321445300,-1000.0,0.00048257,2]
[377290712,1754321445310,-1000.0,0.00048257,2]
[377290713,1754321445319,-1000.0,0.00048257,2]
[377290714,1754321445329,-1000.0,0.00048257,2]
[377290715,1754321445338,-1000.0,0.00048257,2]
[377290716,1754321445348,-1000.0,0.00048257,2]
[377290717,1754321445358,-1000.0,0.00048257,2]
[377290718,1754321445367,-1000.0,0.00048257,2]
[377290719,1754321445377,-1000.0,0.00048257,2]
[377290720,1754321445387,-1000.0,0.00048257,2]
[377290721,1754321445396,-1000.0,0.00048257,2]
[377290722,1754321445406,-1000.0,0.00048257,2]
[377290723,1754321445415,-1000.0,0.00048257,2]
[377290724,1754321445425,-1000.0,0.00048257,2]
[377290725,1754321445435,-1000.0,0.00048257,2]
[377290726,1754321445444,-1000.0,0.00048257,2]
[377290727,1754321445454,-1000.0,0.00048257,2]
[377290728,1754321445465,-1000.0,0.00048257,2]
[377290729,1754321445475,-1000.0,0.00048257,2]
[377290730,1754321445485,-1000.0,0.00048257,2]
[377290731,1754321445495,-1000.0,0.00048257,2]
[377290732,1754321445505,-1000.0,0.00048257,2]
[377290733,1754321445514,-1000.0,0.00048257,2]
[377290734,1754321445524,-391.44,0.00048257,2]
[377290735,1754321445534,-150.0,0.00048258,7]
[377290736,1754321445544,-150.0,0.00048259,7]
[377290737,1754321445553,-150.0,0.00048278,7]
[377290738,1754321445563,-150.0,0.00048278,7]
[377290739,1754321445575,-150.0,0.00048282,7]
[377290740,1754321445585,-150.0,0.00048289,7]
[377290741,1754321445596,-449.84786427,0.0004829,7]
[377290742,1754321445606,-300.0,0.00048291,7]